lending/lending_fUSD_20250516
["ID","MTS","AMOUNT","RATE_DAILY","PERIOD"]
[361297737,1747434647669,-1311.03,0.00016438,2]
[361297738,1747434647678,-729.43,0.00016438,2]
[361297739,1747434647688,-400.0,0.00016438,2]
[361297740,1747434647697,-872.17,0.00016438,2]
[361297741,1747434647707,-416.42600948,0.00016438,2]
[361297742,1747434647717,-400.0,0.00016438,2]
[361297743,1747434647726,-1131.59,0.00016438,2]
[361297744,1747434647735,-411.55034039,0.00016438,2]
[361297745,1747434647745,-418.18309338,0.00016438,2]
[361297746,1747434647754,-848.75,0.00016438,2]
[361297747,1747434647763,-400.0,0.00016438,2]
[361297748,1747434647777,-619.88,0.00016438,2]
[361297749,1747434647787,-151.0,0.00016438,2]
[361297750,1747434647796,-151.0,0.00016438,2]
[361297751,1747434647806,-1238.77,0.00016438,2]
[361297752,1747434647815,-622.94,0.00016438,2]
[361297753,1747434647824,-261.160346,0.00016438,2]
[361297754,1747434647833,-450.0,0.00016438,2]
[361297755,1747434647843,-400.0,0.00016438,2]
[361297756,1747434647853,-151.0,0.00016438,2]
[361297757,1747434647862,-400.0,0.00016438,2]
[361297758,1747434647872,-261.76762488,0.00016438,2]
[361297759,1747434647881,-876.15,0.00016438,2]
[361297760,1747434647891,-400.0,0.00016438,2]
[361297761,1747434647900,-400.0,0.00016438,2]
[361297762,1747434647911,-400.0,0.00016438,2]
[361297763,1747434647921,-584.23,0.00016438,2]
[361297764,1747434647931,-825.32,0.00016438,2]
[361297765,1747434647940,-400.0,0.00016438,2]
[361297766,1747434647949,-400.0,0.00016438,2]
[361297767,1747434647958,-400.0,0.00016438,2]
[361297768,1747434647967,-517.53,0.00016438,2]
[361297769,1747434647976,-400.0,0.00016438,2]
[361297770,1747434647986,-591.41,0.00016438,2]
[361297771,1747434647996,-432.57,0.00016438,2]
[361297772,1747434648006,-1577.51,0.00016438,2]
[361297773,1747434648015,-400.0,0.00016438,2]
[361297774,1747434648025,-400.0,0.00016438,2]
[361297775,1747434648035,-151.0,0.00016438,2]
[361297776,1747434648044,-400.0,0.00016438,2]
[361297777,1747434648055,-561.25,0.00016438,2]
[361297778,1747434648064,-400.0,0.00016438,2]
[361297779,1747434648074,-474.38,0.00016438,2]
[361297780,1747434648084,-400.0,0.00016438,2]
[361297781,1747434648093,-961.75,0.00016438,2]
[361297782,1747434648103,-400.0,0.00016438,2]
[361297783,1747434648112,-400.0,0.00016438,2]
[361297784,1747434648121,-400.0,0.00016438,2]
[361297785,1747434648131,-400.0,0.00016438,2]
[361297786,1747434648140,-400.0,0.00016438,2]
[361297787,1747434648150,-512.33,0.00016438,2]
[361297788,1747434648159,-400.0,0.00016438,2]
[361297789,1747434648169,-784.82,0.00016438,2]
[361297790,1747434648178,-841.0,0.00016438,2]
[361297791,1747434648188,-400.0,0.00016438,2]
[361297792,1747434648198,-450.0,0.00016438,2]
[361297793,1747434648207,-450.0,0.00016438,2]
[361297794,1747434648217,-769.68,0.00016438,2]
[361297795,1747434648226,-400.0,0.00016438,2]
[361297796,1747434648236,-1033.08,0.00016438,2]
[361297797,1747434648246,-400.0,0.00016438,2]
[361297798,1747434648255,-400.0,0.00016438,2]
[361297799,1747434648265,-807.53,0.00016438,2]
[361297800,1747434648274,-690.2,0.00016438,2]
[361297801,1747434648283,-355.543243,0.00016438,2]
[361297802,1747434648292,-563.82,0.00016438,2]
[361297803,1747434648302,-286.35146999,0.00016438,2]
[361297804,1747434648312,-400.0,0.00016438,2]
[361297805,1747434648321,-613.33,0.00016438,2]
[361297806,1747434648330,-400.0,0.00016438,2]
[361297807,1747434648339,-400.0,0.00016438,2]
[361297808,1747434648348,-400.0,0.00016438,2]
[361297809,1747434648358,-401.01,0.00016438,2]
[361297810,1747434648368,-400.0,0.00016438,2]
[361297811,1747434648377,-400.0,0.00016438,2]
[361297812,1747434648386,-412.81,0.00016438,2]
[361297813,1747434648396,-400.0,0.00016438,2]
[361297814,1747434648405,-579.07,0.00016438,2]
[361297815,1747434648414,-467.05,0.00016438,2]
[361297816,1747434648423,-455.69382131,0.00016438,2]
[361297817,1747434648432,-400.0,0.00016438,2]
[361297818,1747434648441,-151.0,0.00016438,2]
[361297819,1747434648450,-151.0,0.00016438,2]
[361297820,1747434648460,-151.0,0.00016438,2]
[361297821,1747434648469,-151.0,0.00016438,2]
[361297822,1747434648478,-151.0,0.00016438,2]
[361297823,1747434648487,-151.0,0.00016438,2]
[361297824,1747434648497,-151.0,0.00016438,2]
[361297825,1747434648506,-151.0,0.00016438,2]
[361297826,1747434648516,-151.0,0.00016438,2]
[361297827,1747434648526,-151.0,0.00016438,2]
[361297828,1747434648535,-400.0,0.00016438,2]
[361297829,1747434648544,-172.870246,0.00016438,2]
[361297830,1747434648554,-400.0,0.00016438,2]
[361297831,1747434648563,-400.0,0.00016438,2]
[361297832,1747434648572,-1020.81,0.00016438,2]
[361297833,1747434648581,-400.0,0.00016438,2]
[361297834,1747434648590,-534.485881,0.00016438,2]
[361297835,1747434648599,-400.0,0.00016438,2]
[361297836,1747434648609,-534.485881,0.00016438,2]
[361297837,1747434648618,-1135.85,0.00016438,2]
[361297838,1747434648627,-534.485881,0.00016438,2]
[361297839,1747434648636,-534.485881,0.00016438,2]
[361297840,1747434648645,-400.0,0.00016438,2]
[361297841,1747434648654,-662.23,0.00016438,2]
[361297842,1747434648664,-704.77,0.00016438,2]
[361297843,1747434648673,-400.0,0.00016438,2]
[361297844,1747434648682,-151.0,0.00016438,2]
[361297845,1747434648691,-637.1,0.00016438,2]
[361297846,1747434648700,-400.0,0.00016438,2]
[361297847,1747434648710,-534.485881,0.00016438,2]
[361297848,1747434648720,-151.0,0.00016438,2]
[361297849,1747434648729,-534.485881,0.00016438,2]
[361297850,1747434648737,-151.0,0.00016438,2]
[361297851,1747434648747,-534.485881,0.00016438,2]
[361297852,1747434648756,-151.0,0.00016438,2]
[361297853,1747434648765,-534.485881,0.00016438,2]
[361297854,1747434648777,-151.0,0.00016438,2]
[361297855,1747434648786,-534.485881,0.00016438,2]
[361297856,1747434648795,-151.0,0.00016438,2]
[361297857,1747434648805,-534.485881,0.00016438,2]
[361297858,1747434648815,-151.0,0.00016438,2]
[361297859,1747434648825,-534.485881,0.00016438,2]
[361297860,1747434648834,-151.0,0.00016438,2]
[361297861,1747434648843,-151.0,0.00016438,2]
[361297862,1747434648852,-534.485881,0.00016438,2]
[361297863,1747434648861,-400.0,0.00016438,2]
[361297864,1747434648870,-151.0,0.00016438,2]
[361297865,1747434648879,-534.485881,0.00016438,2]
[361297866,1747434648888,-151.0,0.00016438,2]
[361297867,1747434648897,-534.485881,0.00016438,2]
[361297868,1747434648906,-151.0,0.00016438,2]
[361297869,1747434648914,-534.485881,0.00016438,2]
[361297870,1747434648923,-151.0,0.00016438,2]
[361297871,1747434648932,-534.485881,0.00016438,2]
[361297872,1747434648941,-151.0,0.00016438,2]
[361297873,1747434648950,-419.99,0.00016438,2]
[361297874,1747434648960,-1346.49,0.00016438,2]
[361297875,1747434648973,-278.26994,0.00016438,2]
[361297876,1747434648982,-400.0,0.00016438,2]
[361297877,1747434648991,-624.52,0.00016438,2]
[361297878,1747434649001,-534.485881,0.00016438,2]
[361297879,1747434649010,-534.485881,0.00016438,2]
[361297880,1747434649019,-400.0,0.00016438,2]
[361297881,1747434649029,-401.48207419,0.00016438,2]
[361297882,1747434649038,-534.485881,0.00016438,2]
[361297883,1747434649047,-400.0,0.00016438,2]
[361297884,1747434649056,-534.485872,0.00016438,2]
[361297885,1747434649065,-400.0,0.00016438,2]
[361297886,1747434649075,-896.86,0.00016438,2]
[361297887,1747434649084,-413.31,0.00016438,2]
[361297888,1747434649094,-520.2,0.00016438,2]
[361297889,1747434649103,-400.0,0.00016438,2]
[361297890,1747434649112,-400.0,0.00016438,2]
[361297891,1747434649121,-744.63,0.00016438,2]
[361297892,1747434649131,-439.23,0.00016438,2]
[361297893,1747434649140,-400.0,0.00016438,2]
[361297894,1747434649149,-400.0,0.00016438,2]
[361297895,1747434649158,-824.77,0.00016438,2]
[361297896,1747434649167,-400.0,0.00016438,2]
[361297897,1747434649176,-151.0,0.00016438,2]
[361297898,1747434649186,-400.0,0.00016438,2]
[361297899,1747434649195,-230.54267,0.00016438,2]
[361297900,1747434649204,-640.9,0.00016438,2]
[361297901,1747434649215,-400.0,0.00016438,2]
[361297902,1747434649225,-400.0,0.00016438,2]
[361297903,1747434649235,-2299.31,0.00016438,2]
[361297904,1747434649245,-400.0,0.00016438,2]
[361297905,1747434649254,-561.57,0.00016438,2]
[361297906,1747434649264,-400.0,0.00016438,2]
[361297907,1747434649274,-662.31,0.00016438,2]
[361297908,1747434649283,-612.15,0.00016438,2]
[361297909,1747434649292,-169.93303285,0.00016438,2]
[361297910,1747434649302,-151.0,0.00016438,2]
[361297911,1747434649311,-1188.02,0.00016438,2]
[361297912,1747434649320,-488.09,0.00016438,2]
[361297913,1747434649330,-152.512617,0.00016438,2]
[361297914,1747434649339,-400.0,0.00016438,2]
[361297915,1747434649348,-400.0,0.00016438,2]
[361297916,1747434649358,-1014.62,0.00016438,2]
[361297917,1747434649367,-400.0,0.00016438,2]
[361297918,1747434649377,-400.0,0.00016438,2]
[361297919,1747434649386,-400.0,0.00016438,2]
[361297920,1747434649396,-539.09,0.00016438,2]
[361297921,1747434649405,-400.0,0.00016438,2]
[361297922,1747434649414,-437.61,0.00016438,2]
[361297923,1747434649424,-400.0,0.00016438,2]
[361297924,1747434649434,-151.0,0.00016438,2]
[361297925,1747434649443,-151.0,0.00016438,2]
[361297926,1747434649452,-151.0,0.00016438,2]
[361297927,1747434649462,-151.0,0.00016438,2]
[361297928,1747434649472,-151.0,0.00016438,2]
[361297929,1747434649481,-434.14,0.00016438,2]
[361297930,1747434649490,-151.0,0.00016438,2]
[361297931,1747434649499,-151.0,0.00016438,2]
[361297932,1747434649509,-151.0,0.00016438,2]
[361297933,1747434649519,-400.0,0.00016438,2]
[361297934,1747434649528,-470.94,0.00016438,2]
[361297935,1747434649537,-151.0,0.00016438,2]
[361297936,1747434649546,-400.0,0.00016438,2]
[361297937,1747434649556,-400.0,0.00016438,2]
[361297938,1747434649565,-400.0,0.00016438,2]
[361297939,1747434649575,-400.0,0.00016438,2]
[361297940,1747434649585,-552.66,0.00016438,2]
[361297941,1747434649593,-400.0,0.00016438,2]
[361297942,1747434649603,-400.0,0.00016438,2]
[361297943,1747434649612,-1156.14,0.00016438,2]
[361297944,1747434649621,-271.80374034,0.00016438,2]
[361297945,1747434649631,-400.0,0.00016438,2]
[361297946,1747434649640,-151.0,0.00016438,2]
[361297947,1747434649650,-151.0,0.00016438,2]
[361297948,1747434649659,-400.0,0.00016438,2]
[361297949,1747434649669,-151.0,0.00016438,2]
[361297950,1747434649678,-151.0,0.00016438,2]
[361297951,1747434649687,-598.62,0.00016438,2]
[361297952,1747434649696,-400.0,0.00016438,2]
[361297953,1747434649705,-1154.34,0.00016438,2]
[361297954,1747434649714,-400.0,0.00016438,2]
[361297955,1747434649723,-899.95,0.00016438,2]
[361297956,1747434649732,-506.79,0.00016438,2]
[361297957,1747434649742,-535.9,0.00016438,2]
[361297958,1747434649751,-860.85,0.00016438,2]
[361297959,1747434649760,-400.0,0.00016438,2]
[361297960,1747434649771,-400.0,0.00016438,2]
[361297961,1747434649780,-359.92344529,0.00016438,2]
[361297962,1747434649789,-400.0,0.00016438,2]
[361297963,1747434649798,-151.0,0.00016438,2]
[361297964,1747434649808,-400.84108858,0.00016438,2]
[361297965,1747434649818,-1172.47,0.00016438,2]
[361297966,1747434649827,-400.0,0.00016438,2]
[361297967,1747434649837,-1190.78,0.00016438,2]
[361297968,1747434649846,-1955.08,0.00016438,2]
[361297969,1747434649857,-400.0,0.00016438,2]
[361297970,1747434649866,-342.06382228,0.00016438,2]
[361297971,1747434649875,-1996.55,0.00016438,2]
[361297972,1747434649884,-400.0,0.00016438,2]
[361297973,1747434649894,-438.87,0.00016438,2]
[361297974,1747434649902,-400.0,0.00016438,2]
[361297975,1747434649911,-715.18,0.00016438,2]
[361297976,1747434649921,-427.2,0.00016438,2]
[361297977,1747434649930,-402.93322443,0.00016438,2]
[361297978,1747434649939,-2174.69,0.00016438,2]
[361297979,1747434649948,-693.93,0.00016438,2]
[361297980,1747434649957,-484.26,0.00016438,2]
[361297981,1747434649967,-456.28,0.00016438,2]
[361297982,1747434649976,-400.0,0.00016438,2]
[361297983,1747434649986,-448.24,0.00016438,2]
[361297984,1747434649995,-400.0,0.00016438,2]
[361297985,1747434650005,-1635.61,0.00016438,2]
[361297986,1747434650015,-400.0,0.00016438,2]
[361297987,1747434650024,-829.54,0.00016438,2]
[361297988,1747434650033,-829.54,0.00016438,2]
[361297989,1747434650042,-829.54,0.00016438,2]
[361297990,1747434650051,-829.54,0.00016438,2]
[361297991,1747434650060,-829.54,0.00016438,2]
[361297992,1747434650069,-501.36,0.00016438,2]
[361297993,1747434650078,-829.54,0.00016438,2]
[361297994,1747434650087,-172.85244818,0.00016438,2]
[361297995,1747434650096,-1365.05,0.00016438,2]
[361297996,1747434650105,-300.26846619,0.00016438,2]
[361297997,1747434650114,-151.0,0.00016438,2]
[361297998,1747434650123,-400.0,0.00016438,2]
[361297999,1747434650132,-425.0,0.00016438,2]
[361298000,1747434650141,-1167.63,0.00016438,2]
[361298001,1747434650150,-400.0,0.00016438,2]
[361298002,1747434650160,-400.0,0.00016438,2]
[361298003,1747434650169,-767.33,0.00016438,2]
[361298004,1747434650178,-400.0,0.00016438,2]
[361298005,1747434650187,-400.0,0.00016438,2]
[361298006,1747434650196,-400.0,0.00016438,2]
[361298007,1747434650206,-400.0,0.00016438,2]
[361298008,1747434650215,-3056.17,0.00016438,2]
[361298009,1747434650224,-400.0,0.00016438,2]
[361298010,1747434650233,-400.0,0.00016438,2]
[361298011,1747434650242,-400.0,0.00016438,2]
[361298012,1747434650252,-400.0,0.00016438,2]
[361298013,1747434650261,-1068.76,0.00016438,2]
[361298014,1747434650270,-400.0,0.00016438,2]
[361298015,1747434650280,-151.0,0.00016438,2]
[361298016,1747434650289,-162.352584,0.00016438,2]
[361298017,1747434650298,-400.0,0.00016438,2]
[361298018,1747434650307,-1212.77,0.00016438,2]
[361298019,1747434650316,-651.65,0.00016438,2]
[361298020,1747434650325,-400.0,0.00016438,2]
[361298021,1747434650334,-400.0,0.00016438,2]
[361298022,1747434650343,-442.56,0.00016438,2]
[361298023,1747434650352,-788.97,0.00016438,2]
[361298024,1747434650362,-780.36,0.00016438,2]
[361298025,1747434650371,-270.38148232,0.00016438,2]
[361298026,1747434650380,-400.0,0.00016438,2]
[361298027,1747434650390,-456.53,0.00016438,2]
[361298028,1747434650399,-1223.19,0.00016438,2]
[361298029,1747434650408,-835.43,0.00016438,2]
[361298030,1747434650417,-512.84,0.00016438,2]
[361298031,1747434650426,-400.0,0.00016438,2]
[361298032,1747434650435,-400.0,0.00016438,2]
[361298033,1747434650444,-151.0,0.00016438,2]
[361298034,1747434650453,-151.0,0.00016438,2]
[361298035,1747434650462,-151.0,0.00016438,2]
[361298036,1747434650471,-400.0,0.00016438,2]
[361298037,1747434650480,-151.0,0.00016438,2]
[361298038,1747434650489,-409.22,0.00016438,2]
[361298039,1747434650498,-151.0,0.00016438,2]
[361298040,1747434650507,-405.56360711,0.00016438,2]
[361298041,1747434650516,-151.0,0.00016438,2]
[361298042,1747434650527,-151.0,0.00016438,2]
[361298043,1747434650536,-151.0,0.00016438,2]
[361298044,1747434650546,-151.0,0.00016438,2]
[361298045,1747434650555,-1376.62,0.00016438,2]
[361298046,1747434650564,-151.0,0.00016438,2]
[361298047,1747434650573,-474.29,0.00016438,2]
[361298048,1747434650582,-151.0,0.00016438,2]
[361298049,1747434650591,-400.0,0.00016438,2]
[361298050,1747434650601,-151.0,0.00016438,2]
[361298051,1747434650610,-508.15,0.00016438,2]
[361298052,1747434650619,-151.0,0.00016438,2]
[361298053,1747434650628,-151.0,0.00016438,2]
[361298054,1747434650638,-151.0,0.00016438,2]
[361298055,1747434650647,-758.72,0.00016438,2]
[361298056,1747434650657,-556.94,0.00016438,2]
[361298057,1747434650666,-400.0,0.00016438,2]
[361298058,1747434650675,-151.0,0.00016438,2]
[361298059,1747434650684,-151.0,0.00016438,2]
[361298060,1747434650694,-198.878671,0.00016438,2]
[361298061,1747434650703,-400.0,0.00016438,2]
[361298062,1747434650712,-400.0,0.00016438,2]
[361298063,1747434650722,-534.78,0.00016438,2]
[361298064,1747434650731,-1091.96,0.00016438,2]
[361298065,1747434650740,-151.0,0.00016438,2]
[361298066,1747434650750,-151.0,0.00016438,2]
[361298067,1747434650759,-584.16,0.00016438,2]
[361298068,1747434650769,-1227.65,0.00016438,2]
[361298069,1747434650778,-400.0,0.00016438,2]
[361298070,1747434650788,-151.0,0.00016438,2]
[361298071,1747434650797,-400.0,0.00016438,2]
[361298072,1747434650807,-712.19,0.00016438,2]
[361298073,1747434650816,-443.06,0.00016438,2]
[361298074,1747434650826,-757.89,0.00016438,2]
[361298075,1747434650835,-400.0,0.00016438,2]
[361298076,1747434650845,-400.0,0.00016438,2]
[361298077,1747434650854,-959.78,0.00016438,2]
[361298078,1747434650863,-400.0,0.00016438,2]
[361298079,1747434650872,-3045.88,0.00016438,2]
[361298080,1747434650882,-899.22,0.00016438,2]
[361298081,1747434650891,-1470.44,0.00016438,2]
[361298082,1747434650900,-531.42826194,0.00016438,2]
[361298083,1747434650909,-836.38,0.00016438,2]
[361298084,1747434650919,-943.86,0.00016438,2]
[361298085,1747434650928,-446.9,0.00016438,2]
[361298086,1747434650938,-151.0,0.00016438,2]
[361298087,1747434650947,-281.595959,0.00016438,2]
[361298088,1747434650956,-559.92,0.00016438,2]
[361298089,1747434650966,-400.0,0.00016438,2]
[361298090,1747434650975,-508.03749577,0.00016438,2]
[361298091,1747434650985,-400.0,0.00016438,2]
[361298092,1747434650995,-12857.62,0.00016438,2]
[361298093,1747434651004,-400.0,0.00016438,2]
[361298094,1747434651014,-400.0,0.00016438,2]
[361298095,1747434651023,-337.55962421,0.00016438,2]
[361298096,1747434651032,-830.06,0.00016438,2]
[361298097,1747434651042,-141479.41,0.00016438,2]
[361298098,1747434651051,-400.0,0.00016438,2]
[361298099,1747434651064,-400.0,0.00016438,2]
[361298100,1747434651074,-400.0,0.00016438,2]
[361298101,1747434651083,-400.0,0.00016438,2]
[361298102,1747434651093,-524.74,0.00016438,2]
[361298103,1747434651102,-909.61,0.00016438,2]
[361298104,1747434651113,-400.0,0.00016438,2]
[361298105,1747434651122,-400.0,0.00016438,2]
[361298106,1747434651132,-611.1,0.00016438,2]
[361298107,1747434651142,-665.55,0.00016438,2]
[361298108,1747434651151,-151.0,0.00016438,2]
[361298109,1747434651161,-400.0,0.00016438,2]
[361298110,1747434651170,-151.0,0.00016438,2]
[361298111,1747434651179,-635.29,0.00016438,2]
[361298112,1747434651189,-4736.73,0.00016438,2]
[361298113,1747434651198,-400.0,0.00016438,2]
[361298114,1747434651207,-3990.08,0.00016438,2]
[361298115,1747434651216,-400.0,0.00016438,2]
[361298116,1747434651226,-400.0,0.00016438,2]
[361298117,1747434651235,-400.0,0.00016438,2]
[361298118,1747434651244,-400.0,0.00016438,2]
[361298119,1747434651254,-1034.43,0.00016438,2]
[361298120,1747434651265,-400.0,0.00016438,2]
[361298121,1747434651275,-608.35,0.00016438,2]
[361298122,1747434651284,-655.49,0.00016438,2]
[361298123,1747434651294,-400.0,0.00016438,2]
[361298124,1747434651303,-1006.03,0.00016438,2]
[361298125,1747434651313,-2720.03,0.00016438,2]
[361298126,1747434651322,-1006.03,0.00016438,2]
[361298127,1747434651332,-1499.58,0.00016438,2]
[361298128,1747434651342,-424.36,0.00016438,2]
[361298129,1747434651351,-1006.03,0.00016438,2]
[361298130,1747434651361,-1006.03,0.00016438,2]
[361298131,1747434651371,-1006.03,0.00016438,2]
[361298132,1747434651380,-1006.03,0.00016438,2]
[361298133,1747434651390,-426.71,0.00016438,2]
[361298134,1747434651399,-400.0,0.00016438,2]
[361298135,1747434651409,-10358.86,0.00016438,2]
[361298136,1747434651418,-704.73,0.00016438,2]
[361298137,1747434651429,-1365.34,0.00016438,2]
[361298138,1747434651439,-400.0,0.00016438,2]
[361298139,1747434651450,-830.18,0.00016438,2]
[361298140,1747434651460,-1269.21,0.00016438,2]
[361298141,1747434651471,-400.0,0.00016438,2]
[361298142,1747434651596,-406.48,0.00016438,2]
[361298143,1747434651615,-400.0,0.00016438,2]
[361298144,1747434651625,-3273.83,0.00016438,2]
[361298145,1747434651635,-1310.22,0.00016438,2]
[361298146,1747434651646,-722.33,0.00016438,2]
[361298147,1747434651655,-400.0,0.00016438,2]
[361298148,1747434651665,-1591.87,0.00016438,2]
[361298149,1747434651675,-400.0,0.00016438,2]
[361298150,1747434651685,-21089.11,0.00016438,2]
[361298151,1747434651694,-400.0,0.00016438,2]
[361298152,1747434651704,-367.01572885,0.00016438,2]
[361298153,1747434651714,-813.77,0.00016438,2]
[361298154,1747434651724,-1906.13,0.00016438,2]
[361298155,1747434651734,-400.0,0.00016438,2]
[361298156,1747434651744,-400.0,0.00016438,2]
[361298157,1747434651754,-2128.72,0.00016438,2]
[361298158,1747434651764,-515.07,0.00016438,2]
[361298159,1747434651779,-151.0,0.00016438,2]
[361298160,1747434651789,-400.0,0.00016438,2]
[361298161,1747434651799,-151.0,0.00016438,2]
[361298162,1747434651808,-151.0,0.00016438,2]
[361298163,1747434651818,-151.0,0.00016438,2]
[361298164,1747434651828,-151.0,0.00016438,2]
[361298165,1747434651838,-436.1,0.00016438,2]
[361298166,1747434651849,-500.0,0.00016438,2]
[361298167,1747434651858,-500.0,0.00016438,2]
[361298168,1747434651868,-1694.3,0.00016438,2]
[361298169,1747434651878,-500.0,0.00016438,2]
[361298170,1747434651887,-400.0,0.00016438,2]
[361298171,1747434651896,-500.0,0.00016438,2]
[361298172,1747434651905,-951.12,0.00016438,2]
[361298173,1747434651914,-1230.98,0.00016438,2]
[361298174,1747434651923,-500.0,0.00016438,2]
[361298175,1747434651933,-500.0,0.00016438,2]
[361298176,1747434651942,-4247.86,0.00016438,2]
[361298177,1747434651951,-184.23522243,0.00016438,2]
[361298178,1747434651961,-557.26,0.00016438,2]
[361298179,1747434651971,-400.0,0.00016438,2]
[361298180,1747434651980,-150.0,0.00016438,10]
[361298181,1747434651989,-1495.16,0.00016438,2]
[361298182,1747434651998,-2931.68,0.00016438,2]
[361298183,1747434652008,-397.32451298,0.00016438,2]
[361298184,1747434652017,-400.0,0.00016438,2]
[361298185,1747434652026,-400.0,0.00016438,2]
[361298186,1747434652035,-400.0,0.00016438,2]
[361298187,1747434652044,-532.22,0.00016438,2]
[361298188,1747434652053,-151.0,0.00016438,2]
[361298189,1747434652063,-500.8,0.00016438,2]
[361298190,1747434652072,-151.0,0.00016438,2]
[361298191,1747434652081,-151.0,0.00016438,2]
[361298192,1747434652090,-152.948424,0.00016438,2]
[361298193,1747434652099,-152.058715,0.00016438,2]
[361298194,1747434652108,-734.35,0.00016438,2]
[361298195,1747434652118,-849.71,0.00016438,2]
[361298196,1747434652127,-11999.42,0.00016438,2]
[361298197,1747434652138,-406.52,0.00016438,2]
[361298198,1747434652147,-1772.27,0.00016438,2]
[361298199,1747434652156,-400.0,0.00016438,2]
[361298200,1747434652165,-2337.74,0.00016438,2]
[361298201,1747434652174,-2011.48,0.00016438,2]
[361298202,1747434652183,-2763.59,0.00016438,2]
[361298203,1747434652192,-400.0,0.00016438,2]
[361298204,1747434652202,-400.0,0.00016438,2]
[361298205,1747434652213,-1996.78,0.00016438,2]
[361298206,1747434652223,-401.20735324,0.00016438,2]
[361298207,1747434652232,-1294.07,0.00016438,2]
[361298208,1747434652242,-400.0,0.00016438,2]
[361298209,1747434652251,-494.1,0.00016438,2]
[361298210,1747434652261,-562.32,0.00016438,2]
[361298211,1747434652270,-3483.83,0.00016438,2]
[361298212,1747434652279,-824.63,0.00016438,2]
[361298213,1747434652288,-741.98,0.00016438,2]
[361298214,1747434652297,-425.37,0.00016438,2]
[361298215,1747434652306,-400.0,0.00016438,2]
[361298216,1747434652315,-400.0,0.00016438,2]
[361298217,1747434652325,-400.0,0.00016438,2]
[361298218,1747434652334,-2312.35,0.00016438,2]
[361298219,1747434652343,-624.87,0.00016438,2]
[361298220,1747434652353,-979.6,0.00016438,2]
[361298221,1747434652362,-400.0,0.00016438,2]
[361298222,1747434652371,-400.0,0.00016438,2]
[361298223,1747434652380,-400.0,0.00016438,2]
[361298224,1747434652390,-400.0,0.00016438,2]
[361298225,1747434652399,-2000.0,0.00016438,2]
[361298226,1747434652408,-454.91,0.00016438,2]
[361298227,1747434652418,-1072.08,0.00016438,2]
[361298228,1747434652427,-555.87,0.00016438,2]
[361298229,1747434652436,-1127.91,0.00016438,2]
[361298230,1747434652446,-1604.28,0.00016438,2]
[361298231,1747434652455,-1181.98,0.00016438,2]
[361298232,1747434652464,-1809.94,0.00016438,2]
[361298233,1747434652474,-585.07,0.00016438,2]
[361298234,1747434652483,-151.0,0.00016438,2]
[361298235,1747434652492,-2006.05,0.00016438,2]
[361298236,1747434652501,-400.0,0.00016438,2]